[Event "Titled Tuesday Blitz April 19 Early 2022"]
[White "Goryachkina, Aleksandra"]
[Black "Sanal, Vahap"]
[WhiteFideId "4147103"]
[BlackFideId "6300545"]
[WhiteElo "2426"]
[BlackElo "2603"]
[Result "0-1"]
[Round "09"]
[TimeControl "180+1"]
[Date "2022.04.19"]
[WhiteClock "0:00:04"]
[BlackClock "0:01:48"]

1. e4 {[%clk 0:02:59]}  e5 {[%clk 0:02:58]} 2. Nf3 {[%clk 0:02:59]}  Nc6 {[%clk 0:02:58]} 3. d4 {[%clk 0:02:59]}  exd4 {[%clk 0:02:58]} 4. Bc4 {[%clk 0:02:59]}  Bc5 {[%clk 0:02:58]} 5. Ng5 {[%clk 0:02:59]}  Nh6 {[%clk 0:02:41]} 6. Nxf7 {[%clk 0:02:58]}  Nxf7 {[%clk 0:02:41]} 7. Bxf7+ {[%clk 0:02:57]}  Kxf7 {[%clk 0:02:41]} 8. Qh5+ {[%clk 0:02:57]}  g6 {[%clk 0:02:39]} 9. Qxc5 {[%clk 0:02:58]}  d6 {[%clk 0:02:39]} 10. Qc4+ {[%clk 0:02:46]}  Be6 {[%clk 0:02:39]} 11. Qe2 {[%clk 0:02:42]}  Kg7 {[%clk 0:02:36]} 12. O-O {[%clk 0:02:39]}  Rf8 {[%clk 0:02:35]} 13. c3 {[%clk 0:02:28]}  Qh4 {[%clk 0:02:27]} 14. f4 {[%clk 0:02:03]}  Rae8 {[%clk 0:02:24]} 15. cxd4 {[%clk 0:01:55]}  Nxd4 {[%clk 0:02:23]} 16. Qd3 {[%clk 0:01:45]}  c5 {[%clk 0:02:23]} 17. Nc3 {[%clk 0:01:45]}  Qe7 {[%clk 0:02:05]} 18. Be3 {[%clk 0:01:43]}  Nc6 {[%clk 0:02:05]} 19. Rad1 {[%clk 0:01:33]}  Rd8 {[%clk 0:02:06]} 20. a3 {[%clk 0:01:05]}  Kg8 {[%clk 0:02:04]} 21. Nd5 {[%clk 0:00:37]}  Qf7 {[%clk 0:01:59]} 22. h3 {[%clk 0:00:17]}  a6 {[%clk 0:01:59]} 23. g4 {[%clk 0:00:17]}  Bxd5 {[%clk 0:01:52]} 24. Qxd5 {[%clk 0:00:12]}  Qxd5 {[%clk 0:01:52]} 25. Rxd5 {[%clk 0:00:10]}  Rfe8 {[%clk 0:01:52]} 26. Rfd1 {[%clk 0:00:09]}  Rxe4 {[%clk 0:01:48]} 27. Bxc5 {[%clk 0:00:06]}  Rxf4 {[%clk 0:01:48]} 28. Bxd6 {[%clk 0:00:06]}  Rc4 {[%clk 0:01:48]} 29. Bf4 {[%clk 0:00:04]}  Rxd5 {[%clk 0:01:48]} 0-1


[Site "https://www.chess.com"]

[Event "Titled Tuesday Blitz April 19 Early 2022"]
[White "Gu, Xiaobing"]
[Black "Papp, Petra"]
[WhiteFideId "8602611"]
[BlackFideId "739049"]
[WhiteElo "2174"]
[BlackElo "2259"]
[Result "0-1"]
[Round "09"]
[TimeControl "180+1"]
[Date "2022.04.19"]
[WhiteClock "0:00:04"]
[BlackClock "0:00:19"]

1. e4 {[%clk 0:01:14]}  c6 {[%clk 0:02:57]} 2. d4 {[%clk 0:01:14]}  d5 {[%clk 0:02:57]} 3. exd5 {[%clk 0:01:14]}  cxd5 {[%clk 0:02:57]} 4. Nf3 {[%clk 0:01:14]}  Nc6 {[%clk 0:02:57]} 5. c3 {[%clk 0:01:15]}  Bg4 {[%clk 0:02:56]} 6. h3 {[%clk 0:01:14]}  Bh5 {[%clk 0:02:56]} 7. Bb5 {[%clk 0:01:12]}  Nf6 {[%clk 0:02:55]} 8. g4 {[%clk 0:01:12]}  Bg6 {[%clk 0:02:55]} 9. Ne5 {[%clk 0:01:12]}  Rc8 {[%clk 0:02:55]} 10. Qa4 {[%clk 0:01:07]}  Qb6 {[%clk 0:02:27]} 11. Nd2 {[%clk 0:01:04]}  e6 {[%clk 0:02:23]} 12. Ndf3 {[%clk 0:01:04]}  Bd6 {[%clk 0:02:20]} 13. Bf4 {[%clk 0:01:02]}  Ne4 {[%clk 0:02:11]} 14. Nxg6 {[%clk 0:00:56]}  hxg6 {[%clk 0:02:10]} 15. Bxd6 {[%clk 0:00:55]}  Nxd6 {[%clk 0:02:10]} 16. Bd3 {[%clk 0:00:53]}  Qxb2 {[%clk 0:02:01]} 17. O-O {[%clk 0:00:42]}  Qxc3 {[%clk 0:01:58]} 18. Ne5 {[%clk 0:00:40]}  Qxd4 {[%clk 0:01:50]} 19. Qxd4 {[%clk 0:00:30]}  Nxd4 {[%clk 0:01:50]} 20. Rab1 {[%clk 0:00:30]}  Rxh3 {[%clk 0:01:46]} 21. Kg2 {[%clk 0:00:29]}  Rh8 {[%clk 0:01:43]} 22. Rfd1 {[%clk 0:00:29]}  Nc6 {[%clk 0:01:38]} 23. Nf3 {[%clk 0:00:28]}  Ke7 {[%clk 0:01:34]} 24. Re1 {[%clk 0:00:27]}  b6 {[%clk 0:01:33]} 25. Rbd1 {[%clk 0:00:27]}  Nb4 {[%clk 0:01:32]} 26. Bb1 {[%clk 0:00:26]}  a5 {[%clk 0:01:24]} 27. a3 {[%clk 0:00:26]}  Na6 {[%clk 0:01:24]} 28. Rd2 {[%clk 0:00:26]}  Nc5 {[%clk 0:01:24]} 29. Rxd5 {[%clk 0:00:26]}  Nd7 {[%clk 0:01:00]} 30. Nd4 {[%clk 0:00:24]}  Nf6 {[%clk 0:00:57]} 31. Rde5 {[%clk 0:00:23]}  Nxg4 {[%clk 0:00:55]} 32. R5e2 {[%clk 0:00:21]}  Rc4 {[%clk 0:00:42]} 33. Nxe6 {[%clk 0:00:20]}  fxe6 {[%clk 0:00:38]} 34. Rxe6+ {[%clk 0:00:20]}  Kd7 {[%clk 0:00:38]} 35. Rxg6 {[%clk 0:00:20]}  Rd4 {[%clk 0:00:31]} 36. Rxg7+ {[%clk 0:00:19]}  Kc6 {[%clk 0:00:31]} 37. Rc1+ {[%clk 0:00:19]}  Kb5 {[%clk 0:00:31]} 38. Rg5+ {[%clk 0:00:19]}  Ka6 {[%clk 0:00:28]} 39. Rc6 {[%clk 0:00:17]}  Nf6 {[%clk 0:00:25]} 40. Rg6 {[%clk 0:00:17]}  Rf8 {[%clk 0:00:23]} 41. Ba2 {[%clk 0:00:16]}  Rd2 {[%clk 0:00:22]} 42. Bb3 {[%clk 0:00:15]}  Nfe4 {[%clk 0:00:21]} 43. Kh3 {[%clk 0:00:11]}  Nxf2+ {[%clk 0:00:20]} 44. Kh4 {[%clk 0:00:12]}  Nfe4 {[%clk 0:00:20]} 45. Be6 {[%clk 0:00:09]}  Rh2+ {[%clk 0:00:19]} 46. Bh3 {[%clk 0:00:09]}  Rf3 {[%clk 0:00:18]} 47. Rgxd6 {[%clk 0:00:04]}  Rhxh3+ {[%clk 0:00:18]} 48. Kg4 {[%clk 0:00:04]}  Nxd6 {[%clk 0:00:18]} 49. Rxd6 {[%clk 0:00:04]}  Rxa3 {[%clk 0:00:19]} 0-1


[Site "https://www.chess.com"]

[Event "Titled Tuesday Blitz April 19 Early 2022"]
[White "Hernandez Bermudez, Ulises Eduardo"]
[Black "Zaksaite, Salomeja"]
[WhiteFideId "3902510"]
[BlackFideId "12801496"]
[WhiteElo "2056"]
[BlackElo "1953"]
[Result "0-1"]
[Round "09"]
[TimeControl "180+1"]
[Date "2022.04.19"]
[WhiteClock "0:02:06"]
[BlackClock "0:00:28"]

1. e4 {[%clk 0:03:00]}  c5 {[%clk 0:02:53]} 2. c3 {[%clk 0:03:00]}  Nf6 {[%clk 0:02:52]} 3. e5 {[%clk 0:03:00]}  Nd5 {[%clk 0:02:52]} 4. d4 {[%clk 0:03:00]}  cxd4 {[%clk 0:02:51]} 5. Qxd4 {[%clk 0:03:01]}  e6 {[%clk 0:02:51]} 6. Nf3 {[%clk 0:03:01]}  Nc6 {[%clk 0:02:51]} 7. Qe4 {[%clk 0:03:01]}  f5 {[%clk 0:02:49]} 8. Qe2 {[%clk 0:03:01]}  h6 {[%clk 0:02:44]} 9. g3 {[%clk 0:02:50]}  g5 {[%clk 0:02:44]} 10. Nxg5 {[%clk 0:02:47]}  hxg5 {[%clk 0:02:42]} 11. Bg2 {[%clk 0:02:46]}  Bg7 {[%clk 0:02:42]} 12. O-O {[%clk 0:02:46]}  Qe7 {[%clk 0:02:36]} 13. Nd2 {[%clk 0:02:45]}  b6 {[%clk 0:02:32]} 14. Nc4 {[%clk 0:02:45]}  Ba6 {[%clk 0:02:27]} 15. Nd6+ {[%clk 0:02:45]}  Qxd6 {[%clk 0:02:27]} 16. Qxa6 {[%clk 0:02:46]}  Nxe5 {[%clk 0:02:15]} 17. Bxg5 {[%clk 0:02:43]}  O-O {[%clk 0:02:14]} 18. Rad1 {[%clk 0:02:41]}  Qc5 {[%clk 0:01:09]} 19. Bxd5 {[%clk 0:02:31]}  exd5 {[%clk 0:01:08]} 20. Qb7 {[%clk 0:02:31]}  Nf3+ {[%clk 0:00:59]} 21. Kg2 {[%clk 0:02:30]}  Nxg5 {[%clk 0:01:00]} 22. Rxd5 {[%clk 0:02:30]}  Qc6 {[%clk 0:00:57]} 23. Qxd7 {[%clk 0:02:29]}  Qxd7 {[%clk 0:00:56]} 24. Rxd7 {[%clk 0:02:29]}  f4 {[%clk 0:00:46]} 25. Rfd1 {[%clk 0:02:22]}  f3+ {[%clk 0:00:46]} 26. Kf1 {[%clk 0:02:20]}  Rae8 {[%clk 0:00:43]} 27. Rxa7 {[%clk 0:02:18]}  Re2 {[%clk 0:00:43]} 28. Rdd7 {[%clk 0:02:17]}  Bf6 {[%clk 0:00:30]} 29. h4 {[%clk 0:02:10]}  Ne4 {[%clk 0:00:30]} 30. h5 {[%clk 0:02:06]}  Rxf2+ {[%clk 0:00:30]} 31. Kg1 {[%clk 0:02:06]}  Rg2+ {[%clk 0:00:29]} 32. Kf1 {[%clk 0:02:06]}  Nxg3+ {[%clk 0:00:28]} 0-1


[Site "https://www.chess.com"]

[Event "Titled Tuesday Blitz April 19 Early 2022"]
[White "Ianov, Viktor"]
[Black "Donchenko, Alexander"]
[WhiteFideId "14102730"]
[BlackFideId "24603295"]
[WhiteElo "2161"]
[BlackElo "2539"]
[Result "0-1"]
[Round "09"]
[TimeControl "180+1"]
[Date "2022.04.19"]
[WhiteClock "0:00:01"]
[BlackClock "0:00:38"]

1. Nf3 {[%clk 0:02:59]}  Nf6 {[%clk 0:02:58]} 2. g3 {[%clk 0:02:58]}  b5 {[%clk 0:02:57]} 3. Bg2 {[%clk 0:02:57]}  Bb7 {[%clk 0:02:56]} 4. Na3 {[%clk 0:02:57]}  a6 {[%clk 0:02:55]} 5. c4 {[%clk 0:02:57]}  e6 {[%clk 0:02:55]} 6. b3 {[%clk 0:02:53]}  Bxa3 {[%clk 0:02:52]} 7. Bxa3 {[%clk 0:02:53]}  d6 {[%clk 0:02:53]} 8. O-O {[%clk 0:02:50]}  O-O {[%clk 0:02:52]} 9. Qc2 {[%clk 0:02:50]}  Nbd7 {[%clk 0:02:51]} 10. Rac1 {[%clk 0:02:47]}  Qe7 {[%clk 0:02:46]} 11. Rfd1 {[%clk 0:02:47]}  e5 {[%clk 0:02:44]} 12. d3 {[%clk 0:02:40]}  c5 {[%clk 0:02:42]} 13. Bb2 {[%clk 0:02:36]}  h6 {[%clk 0:02:39]} 14. a4 {[%clk 0:02:33]}  b4 {[%clk 0:02:32]} 15. e4 {[%clk 0:02:27]}  Ne8 {[%clk 0:02:26]} 16. Nh4 {[%clk 0:02:26]}  g6 {[%clk 0:02:23]} 17. Rf1 {[%clk 0:02:21]}  Nc7 {[%clk 0:02:22]} 18. Rce1 {[%clk 0:02:20]}  Ne6 {[%clk 0:02:21]} 19. Bc1 {[%clk 0:02:17]}  Kh7 {[%clk 0:02:20]} 20. Qd2 {[%clk 0:02:13]}  Qg5 {[%clk 0:02:16]} 21. Qd1 {[%clk 0:02:10]}  Qf6 {[%clk 0:02:12]} 22. Qd2 {[%clk 0:02:08]}  Qg7 {[%clk 0:02:12]} 23. f4 {[%clk 0:02:03]}  exf4 {[%clk 0:02:12]} 24. gxf4 {[%clk 0:02:03]}  Nd4 {[%clk 0:02:12]} 25. Qd1 {[%clk 0:01:57]}  f5 {[%clk 0:02:05]} 26. Kh1 {[%clk 0:01:48]}  Rae8 {[%clk 0:02:04]} 27. Rg1 {[%clk 0:01:37]}  fxe4 {[%clk 0:01:59]} 28. dxe4 {[%clk 0:01:34]}  Nf6 {[%clk 0:01:54]} 29. f5 {[%clk 0:01:29]}  g5 {[%clk 0:01:51]} 30. Ng6 {[%clk 0:01:28]}  Rg8 {[%clk 0:01:32]} 31. Qd3 {[%clk 0:01:21]}  Bc6 {[%clk 0:01:22]} 32. Bb2 {[%clk 0:01:16]}  Qb7 {[%clk 0:01:21]} 33. Bxd4 {[%clk 0:01:09]}  cxd4 {[%clk 0:01:17]} 34. e5 {[%clk 0:00:54]}  dxe5 {[%clk 0:01:11]} 35. Nxe5 {[%clk 0:00:51]}  Bxg2+ {[%clk 0:01:08]} 36. Rxg2 {[%clk 0:00:51]}  Re7 {[%clk 0:01:04]} 37. Qxd4 {[%clk 0:00:44]}  Rge8 {[%clk 0:01:00]} 38. Kg1 {[%clk 0:00:43]}  Qc7 {[%clk 0:00:51]} 39. Rge2 {[%clk 0:00:42]}  Rd8 {[%clk 0:00:51]} 40. Qb2 {[%clk 0:00:34]}  Qc5+ {[%clk 0:00:47]} 41. Kg2 {[%clk 0:00:29]}  Rde8 {[%clk 0:00:46]} 42. Nd3 {[%clk 0:00:17]}  Rxe2+ {[%clk 0:00:43]} 43. Rxe2 {[%clk 0:00:17]}  Rxe2+ {[%clk 0:00:43]} 44. Qxe2 {[%clk 0:00:16]}  Qxf5 {[%clk 0:00:44]} 45. Qe7+ {[%clk 0:00:14]}  Kg6 {[%clk 0:00:44]} 46. Ne5+ {[%clk 0:00:13]}  Kh5 {[%clk 0:00:42]} 47. Qf7+ {[%clk 0:00:13]}  Kh4 {[%clk 0:00:42]} 48. Nf3+ {[%clk 0:00:09]}  Kg4 {[%clk 0:00:42]} 49. h3+ {[%clk 0:00:08]}  Kf4 {[%clk 0:00:43]} 50. Qc7+ {[%clk 0:00:07]}  Ke4 {[%clk 0:00:39]} 51. Qc6+ {[%clk 0:00:04]}  Ke3 {[%clk 0:00:39]} 52. Qb6+ {[%clk 0:00:01]}  Kd3 {[%clk 0:00:38]} 0-1


[Site "https://www.chess.com"]

[Event "Titled Tuesday Blitz April 19 Early 2022"]
[White "Ingebretsen, Jens E"]
[Black "Bas Mas, Jose Joaquin"]
[WhiteFideId "1522965"]
[BlackFideId "22219064"]
[WhiteElo "2072"]
[BlackElo "2212"]
[Result "1-0"]
[Round "09"]
[TimeControl "180+1"]
[Date "2022.04.19"]
[WhiteClock "0:00:21"]
[BlackClock "0:00:16"]

1. Nf3 {[%clk 0:02:57]}  e6 {[%clk 0:02:59]} 2. g3 {[%clk 0:02:57]}  f5 {[%clk 0:03:00]} 3. Bg2 {[%clk 0:02:58]}  Nf6 {[%clk 0:03:00]} 4. O-O {[%clk 0:02:59]}  Be7 {[%clk 0:03:00]} 5. d3 {[%clk 0:03:00]}  O-O {[%clk 0:03:00]} 6. Nbd2 {[%clk 0:03:00]}  d6 {[%clk 0:02:55]} 7. e4 {[%clk 0:03:00]}  e5 {[%clk 0:02:53]} 8. c3 {[%clk 0:02:57]}  Nc6 {[%clk 0:02:53]} 9. b4 {[%clk 0:02:53]}  a6 {[%clk 0:02:51]} 10. Qb3+ {[%clk 0:02:50]}  Kh8 {[%clk 0:02:49]} 11. Ng5 {[%clk 0:02:49]}  Qe8 {[%clk 0:02:46]} 12. Ne6 {[%clk 0:02:47]}  Bxe6 {[%clk 0:02:43]} 13. Qxe6 {[%clk 0:02:48]}  Nd8 {[%clk 0:02:31]} 14. Qb3 {[%clk 0:02:41]}  f4 {[%clk 0:02:21]} 15. d4 {[%clk 0:02:37]}  Nd7 {[%clk 0:02:13]} 16. Bb2 {[%clk 0:02:27]}  Bg5 {[%clk 0:02:09]} 17. Nf3 {[%clk 0:02:22]}  Bh6 {[%clk 0:01:58]} 18. dxe5 {[%clk 0:02:20]}  dxe5 {[%clk 0:01:59]} 19. Rad1 {[%clk 0:02:20]}  Nc6 {[%clk 0:01:54]} 20. c4 {[%clk 0:02:12]}  fxg3 {[%clk 0:01:43]} 21. fxg3 {[%clk 0:02:09]}  a5 {[%clk 0:01:37]} 22. a3 {[%clk 0:02:02]}  axb4 {[%clk 0:01:31]} 23. axb4 {[%clk 0:02:02]}  Qe7 {[%clk 0:01:28]} 24. c5 {[%clk 0:02:02]}  Rfe8 {[%clk 0:01:19]} 25. Kh1 {[%clk 0:02:00]}  g6 {[%clk 0:01:10]} 26. Bh3 {[%clk 0:01:32]}  Nf6 {[%clk 0:01:07]} 27. b5 {[%clk 0:01:22]}  Na5 {[%clk 0:01:03]} 28. Qb4 {[%clk 0:01:15]}  Bg7 {[%clk 0:00:55]} 29. Bxe5 {[%clk 0:01:07]}  b6 {[%clk 0:00:52]} 30. Qc3 {[%clk 0:00:55]}  Qxc5 {[%clk 0:00:46]} 31. Qxc5 {[%clk 0:00:43]}  bxc5 {[%clk 0:00:46]} 32. Ng5 {[%clk 0:00:37]}  Nxe4 {[%clk 0:00:32]} 33. Bxg7+ {[%clk 0:00:31]}  Kxg7 {[%clk 0:00:33]} 34. Rd7+ {[%clk 0:00:32]}  Kh6 {[%clk 0:00:23]} 35. Nf7+ {[%clk 0:00:29]}  Kg7 {[%clk 0:00:20]} 36. Nd6+ {[%clk 0:00:25]}  Kg8 {[%clk 0:00:20]} 37. Nxe8 {[%clk 0:00:24]}  Rxe8 {[%clk 0:00:20]} 38. Rff7 {[%clk 0:00:23]}  Ng5 {[%clk 0:00:20]} 39. Rg7+ {[%clk 0:00:23]}  Kh8 {[%clk 0:00:20]} 40. Bg4 {[%clk 0:00:23]}  Nc4 {[%clk 0:00:17]} 41. h4 {[%clk 0:00:23]}  Ne5 {[%clk 0:00:17]} 42. hxg5 {[%clk 0:00:23]}  Nxd7 {[%clk 0:00:18]} 43. Rxd7 {[%clk 0:00:23]}  Rc8 {[%clk 0:00:15]} 44. Bf3 {[%clk 0:00:22]}  c4 {[%clk 0:00:15]} 45. Kg2 {[%clk 0:00:21]}  c3 {[%clk 0:00:15]} 46. Rd3 {[%clk 0:00:21]}  c5 {[%clk 0:00:14]} 47. bxc6 {[%clk 0:00:21]}  Rc7 {[%clk 0:00:15]} 48. Rxc3 {[%clk 0:00:21]}  Kg7 {[%clk 0:00:15]} 49. Rd3 {[%clk 0:00:22]}  h6 {[%clk 0:00:16]} 50. Rd7+ {[%clk 0:00:21]} 1-0


[Site "https://www.chess.com"]

[Event "Titled Tuesday Blitz April 19 Early 2022"]
[White "Kaasen, Tor Fredrik"]
[Black "Postnikov, Daniil"]
[WhiteFideId "1516647"]
[BlackFideId "4166329"]
[WhiteElo "2335"]
[BlackElo "2261"]
[Result "1/2-1/2"]
[Round "09"]
[TimeControl "180+1"]
[Date "2022.04.19"]
[WhiteClock "0:00:25"]
[BlackClock "0:01:29"]

1. e4 {[%clk 0:03:00]}  e6 {[%clk 0:02:58]} 2. d4 {[%clk 0:03:00]}  d5 {[%clk 0:02:58]} 3. Nc3 {[%clk 0:03:01]}  Bb4 {[%clk 0:02:58]} 4. e5 {[%clk 0:03:01]}  c5 {[%clk 0:02:58]} 5. a3 {[%clk 0:03:01]}  Bxc3+ {[%clk 0:02:58]} 6. bxc3 {[%clk 0:03:02]}  Ne7 {[%clk 0:02:58]} 7. h4 {[%clk 0:03:03]}  Qc7 {[%clk 0:02:58]} 8. h5 {[%clk 0:03:02]}  cxd4 {[%clk 0:02:57]} 9. cxd4 {[%clk 0:03:01]}  Qc3+ {[%clk 0:02:57]} 10. Bd2 {[%clk 0:03:01]}  Qxd4 {[%clk 0:02:57]} 11. Nf3 {[%clk 0:03:01]}  Qe4+ {[%clk 0:02:57]} 12. Be2 {[%clk 0:03:02]}  Nf5 {[%clk 0:02:58]} 13. Rb1 {[%clk 0:03:02]}  Nc6 {[%clk 0:02:39]} 14. Kf1 {[%clk 0:02:58]}  h6 {[%clk 0:02:29]} 15. Bd3 {[%clk 0:02:19]}  Qg4 {[%clk 0:02:24]} 16. Bb5 {[%clk 0:02:01]}  Bd7 {[%clk 0:02:20]} 17. Rb3 {[%clk 0:01:47]}  Rc8 {[%clk 0:02:12]} 18. Qb1 {[%clk 0:01:24]}  b6 {[%clk 0:02:07]} 19. Be2 {[%clk 0:01:19]}  Qe4 {[%clk 0:01:53]} 20. Bd3 {[%clk 0:01:17]}  Qa4 {[%clk 0:01:50]} 21. Bb5 {[%clk 0:01:13]}  Qg4 {[%clk 0:01:48]} 22. Ba6 {[%clk 0:01:13]}  O-O {[%clk 0:01:35]} 23. Bxc8 {[%clk 0:00:54]}  Bxc8 {[%clk 0:01:36]} 24. Kg1 {[%clk 0:00:50]}  Ba6 {[%clk 0:01:34]} 25. Rh3 {[%clk 0:00:41]}  Rc8 {[%clk 0:01:29]} 26. Qb2 {[%clk 0:00:25]} 1/2-1/2


[Site "https://www.chess.com"]

[Event "Titled Tuesday Blitz April 19 Early 2022"]
[White "Karolczuk, Iwo"]
[Black "Shandrygin, Nikita"]
[WhiteFideId "21816972"]
[BlackFideId "24198668"]
[WhiteElo "2277"]
[BlackElo "2323"]
[Result "0-1"]
[Round "09"]
[TimeControl "180+1"]
[Date "2022.04.19"]
[WhiteClock "0:00:03"]
[BlackClock "0:00:18"]

1. e4 {[%clk 0:03:00]}  c5 {[%clk 0:02:42]} 2. Nf3 {[%clk 0:02:57]}  e6 {[%clk 0:02:41]} 3. b3 {[%clk 0:02:52]}  b6 {[%clk 0:02:40]} 4. Bd3 {[%clk 0:02:51]}  Nc6 {[%clk 0:02:38]} 5. O-O {[%clk 0:02:51]}  Bb7 {[%clk 0:02:38]} 6. Re1 {[%clk 0:02:51]}  Nb4 {[%clk 0:02:36]} 7. Bf1 {[%clk 0:02:51]}  Nf6 {[%clk 0:02:35]} 8. Nc3 {[%clk 0:02:48]}  d5 {[%clk 0:02:35]} 9. exd5 {[%clk 0:02:39]}  Nfxd5 {[%clk 0:02:30]} 10. Nxd5 {[%clk 0:02:09]}  Qxd5 {[%clk 0:02:21]} 11. Re5 {[%clk 0:01:50]}  Qd7 {[%clk 0:02:20]} 12. Bb2 {[%clk 0:01:39]}  Be7 {[%clk 0:02:17]} 13. Rh5 {[%clk 0:01:35]}  f6 {[%clk 0:02:04]} 14. d4 {[%clk 0:01:21]}  O-O-O {[%clk 0:02:00]} 15. a3 {[%clk 0:01:15]}  Nd5 {[%clk 0:01:25]} 16. Qd2 {[%clk 0:01:01]}  g5 {[%clk 0:01:14]} 17. Re1 {[%clk 0:00:45]}  Nf4 {[%clk 0:01:13]} 18. Rh6 {[%clk 0:00:43]}  Bxf3 {[%clk 0:01:09]} 19. gxf3 {[%clk 0:00:44]}  cxd4 {[%clk 0:01:10]} 20. Bc4 {[%clk 0:00:37]}  e5 {[%clk 0:01:08]} 21. Re4 {[%clk 0:00:26]}  Kb8 {[%clk 0:01:07]} 22. a4 {[%clk 0:00:25]}  Qf5 {[%clk 0:01:04]} 23. a5 {[%clk 0:00:20]}  Bf8 {[%clk 0:00:55]} 24. axb6 {[%clk 0:00:19]}  axb6 {[%clk 0:00:56]} 25. Bxd4 {[%clk 0:00:10]}  Bc5 {[%clk 0:00:31]} 26. c3 {[%clk 0:00:07]}  exd4 {[%clk 0:00:29]} 27. cxd4 {[%clk 0:00:08]}  Bf8 {[%clk 0:00:28]} 28. d5 {[%clk 0:00:05]}  Bxh6 {[%clk 0:00:21]} 29. Qb4 {[%clk 0:00:05]}  Nxd5 {[%clk 0:00:17]} 30. Bxd5 {[%clk 0:00:04]}  Qxd5 {[%clk 0:00:18]} 31. Qxb6+ {[%clk 0:00:04]}  Qb7 {[%clk 0:00:18]} 32. Qxf6 {[%clk 0:00:03]}  Bg7 {[%clk 0:00:18]} 33. Qxg5 {[%clk 0:00:03]}  Rhg8 {[%clk 0:00:18]} 34. Qf4+ {[%clk 0:00:03]}  Be5+ {[%clk 0:00:18]} 0-1


[Site "https://www.chess.com"]

[Event "Titled Tuesday Blitz April 19 Early 2022"]
[White "Kostiukov, Alexandr"]
[Black "Yang, Kaiqi"]
[WhiteFideId "14108100"]
[BlackFideId "8604398"]
[WhiteElo "2202"]
[BlackElo "2373"]
[Result "0-1"]
[Round "09"]
[TimeControl "180+1"]
[Date "2022.04.19"]
[WhiteClock "0:00:06"]
[BlackClock "0:00:20"]

1. g3 {[%clk 0:02:57]}  g6 {[%clk 0:03:00]} 2. Bg2 {[%clk 0:02:51]}  Bg7 {[%clk 0:03:00]} 3. c4 {[%clk 0:02:50]}  d6 {[%clk 0:03:00]} 4. Nf3 {[%clk 0:02:51]}  f5 {[%clk 0:02:59]} 5. O-O {[%clk 0:02:52]}  Nf6 {[%clk 0:03:00]} 6. d4 {[%clk 0:02:52]}  O-O {[%clk 0:03:00]} 7. Nc3 {[%clk 0:02:53]}  c6 {[%clk 0:03:00]} 8. b3 {[%clk 0:02:48]}  a5 {[%clk 0:02:59]} 9. Bb2 {[%clk 0:02:46]}  Na6 {[%clk 0:02:59]} 10. Qc2 {[%clk 0:02:40]}  Qe8 {[%clk 0:02:53]} 11. Rfe1 {[%clk 0:02:32]}  e5 {[%clk 0:02:47]} 12. dxe5 {[%clk 0:02:31]}  dxe5 {[%clk 0:02:47]} 13. e4 {[%clk 0:02:25]}  f4 {[%clk 0:02:44]} 14. gxf4 {[%clk 0:02:20]}  Nh5 {[%clk 0:02:29]} 15. f5 {[%clk 0:02:05]}  Nb4 {[%clk 0:02:18]} 16. Qd2 {[%clk 0:01:58]}  Nf4 {[%clk 0:02:14]} 17. Na4 {[%clk 0:01:53]}  Nbd3 {[%clk 0:02:05]} 18. Re3 {[%clk 0:01:25]}  gxf5 {[%clk 0:01:57]} 19. exf5 {[%clk 0:01:06]}  Bxf5 {[%clk 0:01:48]} 20. Bxe5 {[%clk 0:00:59]}  Qg6 {[%clk 0:01:31]} 21. Bxf4 {[%clk 0:00:54]}  Nxf4 {[%clk 0:01:31]} 22. Nh4 {[%clk 0:00:45]}  Qf6 {[%clk 0:01:22]} 23. Nxf5 {[%clk 0:00:43]}  Qxa1+ {[%clk 0:01:16]} 24. Re1 {[%clk 0:00:42]}  Qf6 {[%clk 0:01:06]} 25. Ng3 {[%clk 0:00:40]}  Rad8 {[%clk 0:01:02]} 26. Qe3 {[%clk 0:00:30]}  Bh6 {[%clk 0:00:41]} 27. Qb6 {[%clk 0:00:17]}  Nxg2 {[%clk 0:00:23]} 28. Kxg2 {[%clk 0:00:17]}  Qf3+ {[%clk 0:00:24]} 29. Kg1 {[%clk 0:00:17]}  Rd2 {[%clk 0:00:23]} 30. Rf1 {[%clk 0:00:17]}  Rxf2 {[%clk 0:00:20]} 31. Rxf2 {[%clk 0:00:06]}  Be3 {[%clk 0:00:20]} 0-1


[Site "https://www.chess.com"]